[Event "Late-Titled-Tuesday-Blitz-September-19-2023"]
[Site "Chess.com"]
[Date "2023.09.19"]
[Round "8"]
[White "Quattroporte300"]
[Black "Nikachu"]
[Result "1-0"]
[WhiteElo "2407"]
[BlackElo "2199"]
[TimeControl "180+1"]
[EndTime "15:28:40 PDT"]
[Termination "Quattroporte300 won on time"]

1. e4 {[%clk 0:02:57.5]} 1... c5 {[%clk 0:02:59.3]} 2. Nf3 {[%clk 0:02:56.6]}
2... d6 {[%clk 0:02:59.6]} 3. d4 {[%clk 0:02:55]} 3... cxd4 {[%clk 0:03:00.5]}
4. Nxd4 {[%clk 0:02:55.4]} 4... Nf6 {[%clk 0:03:00.8]} 5. Nc3 {[%clk 0:02:56]}
5... e6 {[%clk 0:03:01]} 6. g3 {[%clk 0:02:54.7]} 6... Be7 {[%clk 0:02:57.2]} 7.
Bg2 {[%clk 0:02:55.1]} 7... a6 {[%clk 0:02:57.8]} 8. O-O {[%clk 0:02:55.3]} 8...
O-O {[%clk 0:02:58.1]} 9. a4 {[%clk 0:02:55.3]} 9... Qc7 {[%clk 0:02:58.1]} 10.
Re1 {[%clk 0:02:55.6]} 10... Bd7 {[%clk 0:02:58.5]} 11. a5 {[%clk 0:02:50.7]}
11... Nc6 {[%clk 0:02:58.2]} 12. Nb3 {[%clk 0:02:41.7]} 12... Rac8 {[%clk
0:02:57.1]} 13. Be3 {[%clk 0:02:41.7]} 13... Ne5 {[%clk 0:02:51.6]} 14. Nd2
{[%clk 0:02:34.1]} 14... Nc4 {[%clk 0:02:47.3]} 15. Nxc4 {[%clk 0:02:32.2]}
15... Qxc4 {[%clk 0:02:48.2]} 16. Bf1 {[%clk 0:02:26.5]} 16... Qc7 {[%clk
0:02:46.2]} 17. Bb6 {[%clk 0:02:27.1]} 17... Qb8 {[%clk 0:02:46.3]} 18. f4
{[%clk 0:02:20.4]} 18... Bc6 {[%clk 0:02:45.1]} 19. Bg2 {[%clk 0:02:19.6]} 19...
Nd7 {[%clk 0:02:44.4]} 20. Bd4 {[%clk 0:02:17.5]} 20... Rfd8 {[%clk 0:02:28]}
21. Qd2 {[%clk 0:02:14]} 21... b5 {[%clk 0:02:13.5]} 22. Nd5 {[%clk 0:02:09.8]}
22... Bf8 {[%clk 0:01:42.7]} 23. Nb4 {[%clk 0:02:01.6]} 23... Bb7 {[%clk
0:01:40.5]} 24. Qf2 {[%clk 0:01:55.9]} 24... Rc4 {[%clk 0:01:36.4]} 25. c3
{[%clk 0:01:53.4]} 25... Nc5 {[%clk 0:01:29]} 26. Qc2 {[%clk 0:01:31.2]} 26...
Rc8 {[%clk 0:01:16.4]} 27. Bf1 {[%clk 0:01:31]} 27... Rxb4 {[%clk 0:01:15.5]}
28. cxb4 {[%clk 0:01:26.6]} 28... Nxe4 {[%clk 0:01:14.6]} 29. Bc3 {[%clk
0:01:14.5]} 29... d5 {[%clk 0:01:11.4]} 30. Qd3 {[%clk 0:01:08.4]} 30... Rc4
{[%clk 0:00:50.5]} 31. Qe3 {[%clk 0:00:58.7]} 31... Rc8 {[%clk 0:00:32.1]} 32.
Bg2 {[%clk 0:00:49.6]} 32... f5 {[%clk 0:00:29.3]} 33. Rad1 {[%clk 0:00:47.2]}
33... Qd6 {[%clk 0:00:27.6]} 34. Bxe4 {[%clk 0:00:39.7]} 34... fxe4 {[%clk
0:00:24.6]} 35. Qxe4 {[%clk 0:00:39.5]} 35... dxe4 {[%clk 0:00:24]} 36. Rxd6
{[%clk 0:00:38.8]} 36... Bxd6 {[%clk 0:00:24.9]} 37. Kf2 {[%clk 0:00:37.8]}
37... Bd5 {[%clk 0:00:24.6]} 38. Ke3 {[%clk 0:00:37.4]} 38... Kf7 {[%clk
0:00:25]} 39. g4 {[%clk 0:00:34.3]} 39... g6 {[%clk 0:00:25.5]} 40. h4 {[%clk
0:00:34.5]} 40... Ke8 {[%clk 0:00:25.2]} 41. Rh1 {[%clk 0:00:33.3]} 41... h5
{[%clk 0:00:20.5]} 42. gxh5 {[%clk 0:00:28.5]} 42... gxh5 {[%clk 0:00:21.4]} 43.
Rg1 {[%clk 0:00:29.2]} 43... Be7 {[%clk 0:00:20.2]} 44. Rg8+ {[%clk 0:00:26.8]}
44... Kf7 {[%clk 0:00:20.2]} 45. Rg7+ {[%clk 0:00:27.5]} 45... Kf8 {[%clk
0:00:20.6]} 46. Rh7 {[%clk 0:00:23.8]} 46... Bxh4 {[%clk 0:00:15.9]} 47. Rh8+
{[%clk 0:00:21.1]} 47... Kf7 {[%clk 0:00:12.9]} 48. Rxc8 {[%clk 0:00:21.7]}
48... Be7 {[%clk 0:00:12.3]} 49. Rh8 {[%clk 0:00:18]} 49... h4 {[%clk
0:00:12.4]} 50. Rh7+ {[%clk 0:00:15.8]} 50... Ke8 {[%clk 0:00:12.1]} 51. Be5
{[%clk 0:00:13.9]} 51... Bb3 {[%clk 0:00:08.4]} 52. Rh8+ {[%clk 0:00:12.2]}
52... Kd7 {[%clk 0:00:08.2]} 53. Kxe4 {[%clk 0:00:12.7]} 53... Bc2+ {[%clk
0:00:08.4]} 54. Ke3 {[%clk 0:00:12.3]} 54... Bf5 {[%clk 0:00:09]} 55. Rh6 {[%clk
0:00:11.5]} 55... h3 {[%clk 0:00:09.1]} 56. Kf2 {[%clk 0:00:10.5]} 56... Bxb4
{[%clk 0:00:08.6]} 57. Kg3 {[%clk 0:00:09.2]} 57... Bxa5 {[%clk 0:00:08.6]} 58.
Rh8 {[%clk 0:00:08.2]} 58... Bd2 {[%clk 0:00:07.7]} 59. Ra8 {[%clk 0:00:08.1]}
59... a5 {[%clk 0:00:08.1]} 60. Ra7+ {[%clk 0:00:07.9]} 60... Kc6 {[%clk
0:00:08.2]} 61. Ra6+ {[%clk 0:00:08.4]} 61... Kc5 {[%clk 0:00:07.2]} 62. Rd6
{[%clk 0:00:05.2]} 62... Be3 {[%clk 0:00:06]} 63. Rd1 {[%clk 0:00:04.8]} 63...
Kc4 {[%clk 0:00:05.7]} 64. Re1 {[%clk 0:00:04.6]} 64... Bd4 {[%clk 0:00:04.1]}
65. Rc1+ {[%clk 0:00:04.5]} 1-0

[Event "Late-Titled-Tuesday-Blitz-September-19-2023"]
[Site "Chess.com"]
[Date "2023.09.19"]
[Round "8"]
[White "UK_23"]
[Black "ritanovikova"]
[Result "1-0"]
[WhiteElo "2402"]
[BlackElo "2157"]
[TimeControl "180+1"]
[EndTime "15:29:06 PDT"]
[Termination "UK_23 won on time"]

1. e4 {[%clk 0:02:59.1]} 1... d5 {[%clk 0:02:59.8]} 2. exd5 {[%clk 0:02:59.1]}
2... Qxd5 {[%clk 0:03:00.5]} 3. Nc3 {[%clk 0:02:59.6]} 3... Qd6 {[%clk
0:03:00.6]} 4. d4 {[%clk 0:02:59.6]} 4... Nf6 {[%clk 0:03:00.7]} 5. Nf3 {[%clk
0:03:00.2]} 5... Bf5 {[%clk 0:02:58.7]} 6. g3 {[%clk 0:03:00]} 6... e6 {[%clk
0:02:55.1]} 7. Bf4 {[%clk 0:02:57.3]} 7... Qb6 {[%clk 0:02:52.5]} 8. Qd2 {[%clk
0:02:22]} 8... Bb4 {[%clk 0:02:40.2]} 9. Bg2 {[%clk 0:02:08.5]} 9... Be4 {[%clk
0:02:36.1]} 10. O-O {[%clk 0:02:04.6]} 10... Bc6 {[%clk 0:02:31.5]} 11. Qd3
{[%clk 0:01:52.1]} 11... Bxc3 {[%clk 0:02:27.9]} 12. Qxc3 {[%clk 0:01:52.2]}
12... Nd5 {[%clk 0:02:26.4]} 13. Qb3 {[%clk 0:01:43.4]} 13... Nxf4 {[%clk
0:02:25.3]} 14. gxf4 {[%clk 0:01:44.3]} 14... Nd7 {[%clk 0:02:20.3]} 15. c3
{[%clk 0:01:41.2]} 15... Nf6 {[%clk 0:02:16.9]} 16. Ne5 {[%clk 0:01:37.7]} 16...
Bxg2 {[%clk 0:02:14.7]} 17. Kxg2 {[%clk 0:01:38.6]} 17... Nd5 {[%clk 0:02:08.2]}
18. Kf3 {[%clk 0:01:36.6]} 18... f6 {[%clk 0:02:04.7]} 19. Nd3 {[%clk
0:01:32.6]} 19... Qc6 {[%clk 0:02:03.3]} 20. Ke2 {[%clk 0:01:25.5]} 20... O-O
{[%clk 0:01:58.2]} 21. Rae1 {[%clk 0:01:12.7]} 21... Kh8 {[%clk 0:01:57.2]} 22.
Kd2 {[%clk 0:01:12.1]} 22... Rae8 {[%clk 0:01:47.6]} 23. Kc1 {[%clk 0:01:10.8]}
23... b6 {[%clk 0:01:45.1]} 24. Kb1 {[%clk 0:01:10.3]} 24... Qd6 {[%clk
0:01:44.4]} 25. Re4 {[%clk 0:01:05.9]} 25... c5 {[%clk 0:01:13.4]} 26. Rfe1
{[%clk 0:01:00.1]} 26... cxd4 {[%clk 0:00:57.4]} 27. Rxd4 {[%clk 0:00:59.3]}
27... Qc6 {[%clk 0:00:47.9]} 28. Qc4 {[%clk 0:00:35.6]} 28... Qb7 {[%clk
0:00:45.6]} 29. Nb4 {[%clk 0:00:26.6]} 29... Nxb4 {[%clk 0:00:44.1]} 30. Qxb4
{[%clk 0:00:26.7]} 30... Qf7 {[%clk 0:00:38.5]} 31. a4 {[%clk 0:00:22.8]} 31...
h6 {[%clk 0:00:36.5]} 32. Rde4 {[%clk 0:00:21.6]} 32... Qg6 {[%clk 0:00:35.1]}
33. Ka2 {[%clk 0:00:21.5]} 33... Qf5 {[%clk 0:00:31.8]} 34. Qb5 {[%clk
0:00:19.6]} 34... Qh3 {[%clk 0:00:21.2]} 35. a5 {[%clk 0:00:13.6]} 35... bxa5
{[%clk 0:00:20.8]} 36. Qxa5 {[%clk 0:00:14.5]} 36... Re7 {[%clk 0:00:18.8]} 37.
Qc5 {[%clk 0:00:14]} 37... Rfe8 {[%clk 0:00:18.5]} 38. Qe3 {[%clk 0:00:11.2]}
38... Qf5 {[%clk 0:00:17.5]} 39. Kb1 {[%clk 0:00:08.6]} 39... Rb7 {[%clk
0:00:15.8]} 40. Re2 {[%clk 0:00:07.6]} 40... Reb8 {[%clk 0:00:15]} 41. Qd3
{[%clk 0:00:06.7]} 41... Rb6 {[%clk 0:00:14.3]} 42. Rd4 {[%clk 0:00:06.6]} 42...
Qxd3+ {[%clk 0:00:13.7]} 43. Rxd3 {[%clk 0:00:07.5]} 43... Kg8 {[%clk
0:00:12.3]} 44. Rde3 {[%clk 0:00:08.1]} 44... Kf7 {[%clk 0:00:12.4]} 45. Rc2
{[%clk 0:00:08.1]} 45... a5 {[%clk 0:00:12.1]} 46. Kc1 {[%clk 0:00:08.6]} 46...
a4 {[%clk 0:00:11.3]} 47. Rd3 {[%clk 0:00:09.2]} 47... Rb3 {[%clk 0:00:10.5]}
48. Rd4 {[%clk 0:00:08.9]} 48... a3 {[%clk 0:00:10.1]} 49. bxa3 {[%clk
0:00:09.8]} 49... Rxa3 {[%clk 0:00:09.6]} 50. Kd2 {[%clk 0:00:10.5]} 50... Re8
{[%clk 0:00:09]} 51. Rd7+ {[%clk 0:00:10.5]} 51... Kg6 {[%clk 0:00:09.9]} 52.
Rd4 {[%clk 0:00:11.4]} 52... e5 {[%clk 0:00:09.6]} 53. fxe5 {[%clk 0:00:11.3]}
53... Rxe5 {[%clk 0:00:10.5]} 54. Rd3 {[%clk 0:00:12.1]} 54... Rg5 {[%clk
0:00:10.9]} 55. Rg3 {[%clk 0:00:12.5]} 55... Rxg3 {[%clk 0:00:10.7]} 56. hxg3
{[%clk 0:00:13.4]} 56... Kf5 {[%clk 0:00:11.4]} 57. c4 {[%clk 0:00:13.9]} 57...
Ke6 {[%clk 0:00:11.7]} 58. Rc3 {[%clk 0:00:11.7]} 58... Ra2+ {[%clk 0:00:11.7]}
59. Ke3 {[%clk 0:00:11.7]} 59... Ke5 {[%clk 0:00:11.6]} 60. c5 {[%clk
0:00:11.3]} 60... Ra7 {[%clk 0:00:11.6]} 61. c6 {[%clk 0:00:11.8]} 61... Rc7
{[%clk 0:00:11.7]} 62. Kf3 {[%clk 0:00:12]} 62... Kd6 {[%clk 0:00:12.3]} 63. Kg4
{[%clk 0:00:12.6]} 63... Rxc6 {[%clk 0:00:11.5]} 64. Rd3+ {[%clk 0:00:12.9]}
64... Ke6 {[%clk 0:00:11.5]} 65. Kh5 {[%clk 0:00:13.8]} 65... Rc7 {[%clk
0:00:10.8]} 66. Kg6 {[%clk 0:00:14]} 66... Ke5 {[%clk 0:00:10.9]} 67. Re3+
{[%clk 0:00:14.9]} 67... Kd4 {[%clk 0:00:10.5]} 68. Re8 {[%clk 0:00:15.2]} 68...
Kd3 {[%clk 0:00:07.2]} 69. f4 {[%clk 0:00:15.6]} 69... Kd2 {[%clk 0:00:06.2]}
70. f5 {[%clk 0:00:16.1]} 70... Rc3 {[%clk 0:00:06.6]} 71. g4 {[%clk 0:00:16.2]}
71... Rg3 {[%clk 0:00:06.2]} 72. Kxg7 {[%clk 0:00:16.7]} 72... Rxg4+ {[%clk
0:00:06.8]} 73. Kxf6 {[%clk 0:00:17.6]} 73... h5 {[%clk 0:00:07]} 74. Rh8 {[%clk
0:00:18.2]} 74... h4 {[%clk 0:00:07.3]} 75. Ke5 {[%clk 0:00:18.6]} 75... Ke3
{[%clk 0:00:05.9]} 76. f6 {[%clk 0:00:19.1]} 76... Rg1 {[%clk 0:00:04.8]} 77. f7
{[%clk 0:00:19]} 77... Rf1 {[%clk 0:00:04.7]} 78. Ke6 {[%clk 0:00:17.7]} 78...
Rh1 {[%clk 0:00:02.4]} 79. f8=Q {[%clk 0:00:17.2]} 1-0

[Event "Late-Titled-Tuesday-Blitz-September-19-2023"]
[Site "Chess.com"]
[Date "2023.09.19"]
[Round "8"]
[White "simplerXiao"]
[Black "IlanSchnaider"]
[Result "0-1"]
[WhiteElo "2590"]
[BlackElo "2763"]
[TimeControl "180+1"]
[EndTime "15:29:21 PDT"]
[Termination "IlanSchnaider won by resignation"]

1. e4 {[%clk 0:02:57.4]} 1... c5 {[%clk 0:02:50.3]} 2. Nf3 {[%clk 0:02:56.8]}
2... d6 {[%clk 0:02:49.2]} 3. d4 {[%clk 0:02:57.7]} 3... cxd4 {[%clk 0:02:50.1]}
4. Nxd4 {[%clk 0:02:58]} 4... Nf6 {[%clk 0:02:50]} 5. Nc3 {[%clk 0:02:58.7]}
5... a6 {[%clk 0:02:50.5]} 6. Be3 {[%clk 0:02:57.9]} 6... Ng4 {[%clk 0:02:50.4]}
7. Bg5 {[%clk 0:02:57.5]} 7... h6 {[%clk 0:02:50.3]} 8. Bh4 {[%clk 0:02:57.9]}
8... g5 {[%clk 0:02:50.3]} 9. Bg3 {[%clk 0:02:58.2]} 9... Bg7 {[%clk 0:02:50.8]}
10. h3 {[%clk 0:02:57.2]} 10... Nf6 {[%clk 0:02:51.3]} 11. Bc4 {[%clk 0:02:55]}
11... Qb6 {[%clk 0:02:42.4]} 12. Nb3 {[%clk 0:02:52.3]} 12... Qb4 {[%clk
0:02:34.4]} 13. Bd3 {[%clk 0:02:51.2]} 13... Nxe4 {[%clk 0:02:31.7]} 14. Bxe4
{[%clk 0:02:42.9]} 14... Bxc3+ {[%clk 0:02:31.3]} 15. bxc3 {[%clk 0:02:40.8]}
15... Qxe4+ {[%clk 0:02:31.9]} 16. Kf1 {[%clk 0:02:41.2]} 16... Be6 {[%clk
0:02:27.4]} 17. Kg1 {[%clk 0:02:39.6]} 17... Nc6 {[%clk 0:02:22.3]} 18. Kh2
{[%clk 0:02:37.8]} 18... h5 {[%clk 0:02:22.3]} 19. Re1 {[%clk 0:02:37.6]} 19...
Qg6 {[%clk 0:02:22.2]} 20. f3 {[%clk 0:02:34.4]} 20... g4 {[%clk 0:02:22.2]} 21.
h4 {[%clk 0:02:31.3]} 21... gxf3 {[%clk 0:02:21.6]} 22. Qxf3 {[%clk 0:02:30.4]}
22... Rg8 {[%clk 0:02:21.9]} 23. Re3 {[%clk 0:02:21.5]} 23... Qxc2 {[%clk
0:02:10]} 24. Nd4 {[%clk 0:02:17.1]} 24... Nxd4 {[%clk 0:02:03.9]} 25. cxd4
{[%clk 0:02:18]} 25... Qc6 {[%clk 0:02:01.8]} 26. Qxh5 {[%clk 0:02:12.4]} 26...
Kd7 {[%clk 0:01:57.1]} 27. Rae1 {[%clk 0:01:53.5]} 27... Rh8 {[%clk 0:01:48.5]}
28. Qd1 {[%clk 0:01:46.4]} 28... Qd5 {[%clk 0:01:44]} 29. Qe2 {[%clk 0:01:36.8]}
29... Rag8 {[%clk 0:01:41.7]} 30. Rd1 {[%clk 0:01:35.3]} 30... Qxa2 {[%clk
0:01:36.1]} 31. Rd2 {[%clk 0:01:35]} 31... Qd5 {[%clk 0:01:35.4]} 32. Re5 {[%clk
0:01:31.9]} 32... Rxh4+ {[%clk 0:01:21.9]} 33. Bxh4 {[%clk 0:01:31.1]} 33... Qb3
{[%clk 0:00:21.7]} 34. d5 {[%clk 0:01:28.6]} 34... dxe5 {[%clk 0:00:18.9]} 35.
Qxe5 {[%clk 0:01:25.7]} 35... Bg4 {[%clk 0:00:10.4]} 36. Qxe7+ {[%clk
0:01:24.7]} 36... Kc8 {[%clk 0:00:10.8]} 37. d6 {[%clk 0:01:23.2]} 37... Bd7
{[%clk 0:00:09.5]} 38. Qe4 {[%clk 0:01:04.2]} 38... Kb8 {[%clk 0:00:06.9]} 39.
Rd3 {[%clk 0:01:00.9]} 39... Qe6 {[%clk 0:00:06]} 40. Qxe6 {[%clk 0:00:53.6]}
40... fxe6 {[%clk 0:00:06.9]} 41. Rc3 {[%clk 0:00:52.3]} 41... Bc6 {[%clk
0:00:06.6]} 42. Bg3 {[%clk 0:00:51.2]} 42... Kc8 {[%clk 0:00:06.5]} 43. Re3
{[%clk 0:00:51.2]} 43... Kd7 {[%clk 0:00:06.8]} 44. Re1 {[%clk 0:00:49.2]} 44...
Rh8+ {[%clk 0:00:06.5]} 45. Kg1 {[%clk 0:00:48.9]} 45... Rg8 {[%clk 0:00:07.4]}
46. Kf2 {[%clk 0:00:48]} 46... Rf8+ {[%clk 0:00:07.5]} 47. Ke3 {[%clk 0:00:47]}
47... Rf5 {[%clk 0:00:07.4]} 48. Rh1 {[%clk 0:00:46.5]} 48... Rf7 {[%clk
0:00:06.2]} 49. Bf4 {[%clk 0:00:41.3]} 49... Bxg2 {[%clk 0:00:05.9]} 50. Rg1
{[%clk 0:00:39.3]} 50... Bc6 {[%clk 0:00:06.2]} 51. Rg8 {[%clk 0:00:39.4]} 51...
Rh7 {[%clk 0:00:04.1]} 52. Kd4 {[%clk 0:00:36.8]} 52... Rf7 {[%clk 0:00:03.2]}
53. Be5 {[%clk 0:00:35.1]} 53... Bd5 {[%clk 0:00:03.2]} 54. Kc5 {[%clk
0:00:33.5]} 54... Rh7 {[%clk 0:00:01.9]} 55. Kb6 {[%clk 0:00:33]} 55... Bc6
{[%clk 0:00:02.1]} 56. Bf4 {[%clk 0:00:32.4]} 56... Rf7 {[%clk 0:00:02.2]} 57.
Be5 {[%clk 0:00:32.7]} 57... Rh7 {[%clk 0:00:02]} 58. Rf8 {[%clk 0:00:32.5]}
58... a5 {[%clk 0:00:01.4]} 59. Kc5 {[%clk 0:00:30.7]} 59... Rh5 {[%clk
0:00:02]} 60. Kd4 {[%clk 0:00:30]} 60... Rh4+ {[%clk 0:00:01.9]} 61. Kc5 {[%clk
0:00:27.8]} 61... Rh5 {[%clk 0:00:02.6]} 62. Kd4 {[%clk 0:00:27.5]} 62... Rh7
{[%clk 0:00:03.5]} 63. Kc5 {[%clk 0:00:26.5]} 63... a4 {[%clk 0:00:04.1]} 64.
Bf6 {[%clk 0:00:18.4]} 64... e5 {[%clk 0:00:02.3]} 65. Rd8+ {[%clk 0:00:16.3]}
65... Ke6 {[%clk 0:00:02.5]} 66. Bg5 {[%clk 0:00:14.3]} 66... a3 {[%clk
0:00:02.8]} 67. Ra8 {[%clk 0:00:13.4]} 67... Rh5 {[%clk 0:00:02.2]} 68. Be3
{[%clk 0:00:12.9]} 68... e4+ {[%clk 0:00:03.1]} 69. Kd4 {[%clk 0:00:12.7]} 69...
Kxd6 {[%clk 0:00:03.4]} 70. Rxa3 {[%clk 0:00:12.7]} 70... Rd5+ {[%clk 0:00:04]}
71. Kc4 {[%clk 0:00:13]} 71... Bb5+ {[%clk 0:00:04.2]} 72. Kb4 {[%clk
0:00:12.7]} 72... Bc6 {[%clk 0:00:04.6]} 73. Bf4+ {[%clk 0:00:13.3]} 73... Ke6
{[%clk 0:00:04.7]} 74. Rh3 {[%clk 0:00:14]} 74... Rf5 {[%clk 0:00:04.5]} 75.
Rh6+ {[%clk 0:00:13.8]} 75... Kf7 {[%clk 0:00:05.2]} 76. Be3 {[%clk 0:00:13.3]}
76... Rf3 {[%clk 0:00:05.9]} 77. Bd4 {[%clk 0:00:13.4]} 77... e3 {[%clk
0:00:06.3]} 78. Kc4 {[%clk 0:00:13.7]} 78... e2 {[%clk 0:00:06.3]} 79. Rh7+
{[%clk 0:00:13.8]} 79... Ke6 {[%clk 0:00:04.7]} 80. Rh6+ {[%clk 0:00:14.1]}
80... Kd7 {[%clk 0:00:04.2]} 81. Rh7+ {[%clk 0:00:14.7]} 81... Ke8 {[%clk
0:00:04]} 82. Rh8+ {[%clk 0:00:14]} 82... Rf8 {[%clk 0:00:04.7]} 83. Rxf8+
{[%clk 0:00:13.8]} 83... Kxf8 {[%clk 0:00:05.4]} 84. Bf2 {[%clk 0:00:14.2]}
84... Ke7 {[%clk 0:00:05]} 85. Be1 {[%clk 0:00:15.1]} 85... Ke6 {[%clk
0:00:05.2]} 86. Kc5 {[%clk 0:00:16]} 86... Ke5 {[%clk 0:00:05.3]} 87. Bc3+
{[%clk 0:00:15.5]} 87... Ke4 {[%clk 0:00:05.8]} 88. Be1 {[%clk 0:00:16.4]} 88...
Kd3 {[%clk 0:00:06]} 89. Kb4 {[%clk 0:00:16.3]} 89... Kc2 {[%clk 0:00:06.9]} 90.
Kc4 {[%clk 0:00:16]} 90... Kd1 {[%clk 0:00:07.8]} 91. Bg3 {[%clk 0:00:16.2]}
91... e1=Q {[%clk 0:00:08]} 92. Bxe1 {[%clk 0:00:17.1]} 92... Kxe1 {[%clk
0:00:08.9]} 93. Kc5 {[%clk 0:00:17.4]} 93... Ke2 {[%clk 0:00:09.8]} 94. Kb6
{[%clk 0:00:18.2]} 94... Kf3 {[%clk 0:00:10.7]} 95. Kc7 {[%clk 0:00:18.8]} 95...
Ke4 {[%clk 0:00:11.6]} 96. Kb6 {[%clk 0:00:19.7]} 96... Kd5 {[%clk 0:00:12.4]}
97. Kc7 {[%clk 0:00:20.6]} 97... Kc5 {[%clk 0:00:13]} 98. Kb8 {[%clk 0:00:20.6]}
98... b5 {[%clk 0:00:13.9]} 99. Kc7 {[%clk 0:00:21.2]} 99... b4 {[%clk
0:00:14.8]} 0-1

[Event "Late-Titled-Tuesday-Blitz-September-19-2023"]
[Site "Chess.com"]
[Date "2023.09.19"]
[Round "8"]
[White "JackRodgers"]
[Black "azikom"]
[Result "1/2-1/2"]
[WhiteElo "2523"]
[BlackElo "2626"]
[TimeControl "180+1"]
[EndTime "15:29:23 PDT"]
[Termination "Game drawn by repetition"]

1. d4 {[%clk 0:03:00.8]} 1... d5 {[%clk 0:02:58.8]} 2. Bg5 {[%clk 0:02:58]} 2...
h6 {[%clk 0:02:56.3]} 3. Bh4 {[%clk 0:02:57.9]} 3... c6 {[%clk 0:02:51.2]} 4. e3
{[%clk 0:02:57.2]} 4... Qb6 {[%clk 0:02:48.6]} 5. Qc1 {[%clk 0:02:57.8]} 5... e5
{[%clk 0:02:41.7]} 6. Nf3 {[%clk 0:02:55.7]} 6... exd4 {[%clk 0:02:36.4]} 7.
exd4 {[%clk 0:02:51.9]} 7... Be7 {[%clk 0:02:36.6]} 8. Bxe7 {[%clk 0:02:51.5]}
8... Nxe7 {[%clk 0:02:36.3]} 9. Bd3 {[%clk 0:02:52.2]} 9... Bg4 {[%clk
0:02:32.4]} 10. Nbd2 {[%clk 0:02:47]} 10... Nd7 {[%clk 0:02:31.3]} 11. h3 {[%clk
0:02:44]} 11... Bf5 {[%clk 0:02:29.5]} 12. Bxf5 {[%clk 0:02:42.2]} 12... Nxf5
{[%clk 0:02:30.4]} 13. c3 {[%clk 0:02:42.5]} 13... Qa6 {[%clk 0:02:27.2]} 14. c4
{[%clk 0:02:38.5]} 14... dxc4 {[%clk 0:02:22.3]} 15. Qxc4 {[%clk 0:02:36.1]}
15... Qxc4 {[%clk 0:02:21.5]} 16. Nxc4 {[%clk 0:02:37]} 16... Nb6 {[%clk
0:02:19.4]} 17. Ne3 {[%clk 0:02:33.8]} 17... Nd6 {[%clk 0:02:14.8]} 18. O-O-O
{[%clk 0:02:29.9]} 18... O-O-O {[%clk 0:02:08.9]} 19. Rhe1 {[%clk 0:02:26.6]}
19... Rhe8 {[%clk 0:02:07.7]} 20. d5 {[%clk 0:02:15.5]} 20... c5 {[%clk
0:02:07.2]} 21. Nc2 {[%clk 0:01:44.4]} 21... Rxe1 {[%clk 0:01:59]} 22. Nfxe1
{[%clk 0:01:45.3]} 22... Re8 {[%clk 0:01:51.5]} 23. Nd3 {[%clk 0:01:36.5]} 23...
Nd7 {[%clk 0:01:51.3]} 24. Re1 {[%clk 0:01:30.2]} 24... Rxe1+ {[%clk 0:01:50.4]}
25. Ndxe1 {[%clk 0:01:26.4]} 25... Nf6 {[%clk 0:01:46]} 26. Ne3 {[%clk
0:01:24.7]} 26... Kd7 {[%clk 0:01:39.2]} 27. Nd3 {[%clk 0:01:21.9]} 27... b6
{[%clk 0:01:33.2]} 28. Kd2 {[%clk 0:01:17.8]} 28... Nde4+ {[%clk 0:01:26.8]} 29.
Ke2 {[%clk 0:01:18.1]} 29... g6 {[%clk 0:01:16.2]} 30. Ne5+ {[%clk 0:01:10.9]}
30... Ke8 {[%clk 0:01:13.4]} 31. Nc6 {[%clk 0:01:03.2]} 31... a6 {[%clk
0:01:10.5]} 32. Ne5 {[%clk 0:00:47.6]} 32... Nd6 {[%clk 0:01:04.3]} 33. f3
{[%clk 0:00:43.1]} 33... Nd7 {[%clk 0:00:58.7]} 34. N3c4 {[%clk 0:00:37]} 34...
Nxe5 {[%clk 0:00:55.4]} 35. Nxe5 {[%clk 0:00:32.8]} 35... Nf5 {[%clk 0:00:44]}
36. Nc4 {[%clk 0:00:31.1]} 36... b5 {[%clk 0:00:42.5]} 37. Ne5 {[%clk
0:00:27.2]} 37... Ke7 {[%clk 0:00:41.5]} 38. g4 {[%clk 0:00:23.1]} 38... Nd4+
{[%clk 0:00:39.3]} 39. Ke3 {[%clk 0:00:23.7]} 39... Nc2+ {[%clk 0:00:36]} 40.
Kd2 {[%clk 0:00:22.1]} 40... Nb4 {[%clk 0:00:35.7]} 41. d6+ {[%clk 0:00:18.3]}
41... Kxd6 {[%clk 0:00:33.2]} 42. Nxf7+ {[%clk 0:00:18.5]} 42... Ke6 {[%clk
0:00:32.2]} 43. Nxh6 {[%clk 0:00:18.8]} 43... Nxa2 {[%clk 0:00:31.1]} 44. h4
{[%clk 0:00:17.4]} 44... Nb4 {[%clk 0:00:25.6]} 45. f4 {[%clk 0:00:17.1]} 45...
Nd5 {[%clk 0:00:24.2]} 46. f5+ {[%clk 0:00:16.7]} 46... gxf5 {[%clk 0:00:24.2]}
47. Nxf5 {[%clk 0:00:17.6]} 47... Nf6 {[%clk 0:00:20.3]} 48. Ne3 {[%clk
0:00:17.1]} 48... Ke5 {[%clk 0:00:20.1]} 49. g5 {[%clk 0:00:16.7]} 49... Nh5
{[%clk 0:00:20.1]} 50. Ng4+ {[%clk 0:00:09.8]} 50... Kf4 {[%clk 0:00:18.9]} 51.
Nf6 {[%clk 0:00:10.3]} 51... Ng3 {[%clk 0:00:17]} 52. g6 {[%clk 0:00:09.9]}
52... Nf5 {[%clk 0:00:14.8]} 53. h5 {[%clk 0:00:08.5]} 53... Kg5 {[%clk
0:00:14]} 54. Ne4+ {[%clk 0:00:07.2]} 54... Kxh5 {[%clk 0:00:13.4]} 55. Nxc5
{[%clk 0:00:08.1]} 55... Kxg6 {[%clk 0:00:12.9]} 56. Nxa6 {[%clk 0:00:08.8]}
56... Kf6 {[%clk 0:00:13.1]} 57. Kc3 {[%clk 0:00:09.4]} 57... Ke5 {[%clk
0:00:12.8]} 58. Kb4 {[%clk 0:00:09.9]} 58... Ne3 {[%clk 0:00:10.8]} 59. Kxb5
{[%clk 0:00:09.4]} 59... Nc2 {[%clk 0:00:10.5]} 60. Nb4 {[%clk 0:00:08.6]} 60...
Nd4+ {[%clk 0:00:10]} 61. Kc4 {[%clk 0:00:09.1]} 61... Ne6 {[%clk 0:00:09.2]}
62. Nd3+ {[%clk 0:00:09.3]} 62... Kd6 {[%clk 0:00:08.9]} 63. b4 {[%clk
0:00:09.8]} 63... Nc7 {[%clk 0:00:08.9]} 64. Nc5 {[%clk 0:00:09.4]} 64... Kc6
{[%clk 0:00:08.8]} 65. Ne4 {[%clk 0:00:08.4]} 65... Nb5 {[%clk 0:00:07.8]} 66.
Nc3 {[%clk 0:00:08]} 66... Nxc3 {[%clk 0:00:07.1]} 67. Kxc3 {[%clk 0:00:08.9]}
67... Kb5 {[%clk 0:00:07.7]} 68. Kb3 {[%clk 0:00:09.6]} 68... Kb6 {[%clk
0:00:07.5]} 69. Ka3 {[%clk 0:00:10.5]} 69... Kb5 {[%clk 0:00:07.4]} 70. Kb3
{[%clk 0:00:10.7]} 70... Kb6 {[%clk 0:00:08]} 71. Ka4 {[%clk 0:00:11.6]} 71...
Ka6 {[%clk 0:00:08.2]} 72. b5+ {[%clk 0:00:12.2]} 72... Kb6 {[%clk 0:00:08.3]}
73. Kb4 {[%clk 0:00:13.1]} 73... Kb7 {[%clk 0:00:08.7]} 74. Kc5 {[%clk 0:00:14]}
74... Kc7 {[%clk 0:00:09.1]} 75. Kc4 {[%clk 0:00:14.9]} 75... Kb6 {[%clk
0:00:08.8]} 76. Kb4 {[%clk 0:00:15.8]} 76... Kb7 {[%clk 0:00:09.2]} 77. Kc5
{[%clk 0:00:16.7]} 77... Kc7 {[%clk 0:00:09.6]} 78. b6+ {[%clk 0:00:17.6]} 78...
Kb7 {[%clk 0:00:10.1]} 79. Kb5 {[%clk 0:00:18.5]} 79... Kb8 {[%clk 0:00:10.2]}
80. Kc6 {[%clk 0:00:19.2]} 80... Kc8 {[%clk 0:00:10.5]} 81. Kc5 {[%clk
0:00:20.1]} 81... Kb7 {[%clk 0:00:10.1]} 82. Kb5 {[%clk 0:00:21]} 82... Kb8
{[%clk 0:00:10.3]} 83. Ka6 {[%clk 0:00:21.6]} 83... Ka8 {[%clk 0:00:10.5]} 84.
Ka5 {[%clk 0:00:22.5]} 84... Kb7 {[%clk 0:00:10.4]} 85. Kb5 {[%clk 0:00:23.4]}
1/2-1/2